Cogmind - Beta 14 @@@ ROGUE MODE // 2024.12.24 @ 11:45:14 Player: RandomChats Result: Destroyed by G-34 Mercenary with Small Laser Performance ------------- Evolutions (0) 0 Regions Visited (1) 200 Robots Destroyed (17) 85 Value Destroyed (279) 279 Prototype IDs (0) 0 Alien Tech Used (0) 0 Bonus (0) 0 TOTAL SCORE: 564 Bonus ------- None Cogmind --------- Core Integrity 0/250 Matter 241/300 Energy 250/250 System Corruption 0% Temperature Cool (12) Movement Flying (920) Ox11 Location -10/Materials Parts ------- > --- POWER (1) -------- Ion Engine > --- PROPULSION (2) --- Flight Unit > --- UTILITY (2) ------ High-capacity Storage Unit Propulsion Shielding > --- WEAPON (2) ------- Light Assault Rifle > --- INVENTORY (20) --- Ion Engine Wheel Hover Unit Flight Unit Heat Sink Improved Heat Sink Large Storage Unit Medium Matter Pod (32) Light Armor Plating Light Assault Rifle Light Cannon Light Cannon Grenade Launcher Mining Laser Welding Torch Peak State ------------ > --- POWER ------------ Light Ion Engine > --- PROPULSION ------- Wheel Wheel > --- UTILITY ---------- High-capacity Storage Unit Hacking Suite > --- WEAPON ----------- Assault Rifle Light Assault Rifle > --- INVENTORY -------- Light Ion Engine Aluminum Leg Aluminum Leg Aluminum Leg Wheel Hover Unit Flight Unit Large Storage Unit Light Assault Rifle Grenade Launcher Mining Laser [Rating: 10] Favorites ----------- Power Light Ion Engine Engine Light Ion Engine Propulsion Wheel Leg Aluminum Leg Wheel Wheel Hover Unit Hover Unit Flight Unit Flight Unit Utility High-capacity Storage Unit Storage High-capacity Storage Unit Hackware Hacking Suite Protection Propulsion Shielding Weapon Light Assault Rifle Ballistic Gun Light Assault Rifle Build | -11 -10 ------- Run | Yrd Mat Slots Evolved . | . . Power . | . . Propulsion . | . . Utility . | . . Weapon . | . . Parts Attached 25 | 7 18 Power 4 | 1 3 Engine 4 | 1 3 Core . | . . Reactor . | . . Propulsion 12 | 3 9 Treads . | . . Leg 3 | 1 2 Wheel 3 | 2 1 Hover 1 | . 1 Flight 5 | . 5 Utility 5 | . 5 Device . | . . Storage 3 | . 3 Processor . | . . Hackware 1 | . 1 Protection 1 | . 1 Artifact . | . . Weapon 4 | 3 1 Energy Gun . | . . Energy Cannon . | . . Ballistic Gun 4 | 3 1 Ballistic Cannon . | . . Launcher . | . . Special Weapon . | . . Impact Weapon . | . . Slashing Weapon . | . . Piercing Weapon . | . . Special Melee Weapon . | . . Unidentified Prototypes . | . . Parts Lost 4 | . 4 Power 2 | . 2 Propulsion 1 | . 1 Utility . | . . Weapon 1 | . 1 Highest Loss Streak 2 | . 2 To Critical Strikes . | . . Average Slot Usage (%) 94 | . 94 Engine 13 | . 13 Leg 7 | . 7 Wheel 12 | . 12 Flight 7 | . 7 Storage 13 | . 13 Hackware 9 | . 9 Ballistic Gun 27 | . 27 Peak Build Rating 10 | 5 10 Average Rating 8 | 4 8 On Entrance 2 | . 5 Naked Turns . | . . Heaviest Build 48 | 6 48 Greatest Support 20 | 10 20 Greatest Overweight (x) 14 | . 14 Average Overweight (x) 2 | . 3 Largest Inventory Capacity 20 | 5 20 Average Capacity 17 | 5 19 Most Carried 17 | 5 17 Average Carried 10 | 3 11 Final Capacity 20 | 5 20 Final Carried 15 | 5 15 Class Distribution -------------------- 85% | Mutant 14% | Scavenger-Mutant Dominant Class ---------------- Mutant | -10/Materials Resources | -11 -10 ----------- Run | Yrd Mat Matter Collected 581 | 296 285 Remotely . | . . Salvage Created 397 | 93 304 Parts 33 | 4 29 Haulers Intercepted . | . . Recyclers Shooed . | . . Parts Field Recycled . | . . Retrieved Matter . | . . Parts Self-Destructed . | . . Prevented . | . . Kills | -11 -10 ------- Run | Yrd Mat Combat Hostiles Destroyed 13 | 1 12 Guns 13 | 1 12 Classes Destroyed 6 | 3 3 Worker 1 | 1 . Tunneler 1 | 1 . Operator 1 | . 1 Watcher 1 | . 1 Swarmer 9 | . 9 Grunt 4 | 1 3 Best Kill Streak 4 | 1 4 Combat Bots Only 3 | 1 3 Max Kills in Single Turn 1 | 1 1 Gunslinging . | . . Exploded . | . . Melee . | . . Uniques/NPCs Destroyed . | . . Combat | -11 -10 -------- Run | Yrd Mat Hostile Shots Fired 116 | 6 110 Missed 34 | 3 31 Damage Taken 817 | 34 783 Core 253 | . 253 Absorbed by Shields . | . . Redirected to Shielding 6 | . 6 Core Remaining (%) 100 | 100 . Volleys Fired 70 | 18 52 Largest 2 | 2 2 Hottest 40 | 40 40 Shots Fired 138 | 36 102 Gun 138 | 36 102 Cannon . | . . Launcher . | . . Special . | . . Kinetic 138 | 36 102 Thermal . | . . Explosive . | . . Electromagnetic . | . . Robot Hit Streak 10 | 4 10 Robot Miss Streak 4 | 3 4 Penetration Max . | . . Secondary Targets 1 | . 1 Max Gunslinging Chain 1 | . 1 Shots Hit Robots 83 | 20 63 Core Hits 34 | 7 27 Critical Kills . | . . Critical Parts Destroyed . | . . Critical Strikes . | . . Melee Attacks . | . . Impact . | . . Slashing . | . . Piercing . | . . Sneak Attacks . | . . Combat Hostiles . | . . Follow-up Attacks . | . . Damage Inflicted 761 | 163 598 Guns 761 | 163 598 Cannons . | . . Explosions . | . . Melee . | . . Ramming . | . . Kinetic 761 | 163 598 Thermal . | . . Explosive . | . . Electromagnetic . | . . Impact . | . . Slashing . | . . Piercing . | . . Highest Corruption . | . . Average Corruption . | . . Corruption Purged . | . . Corruption Blocked . | . . Overload Shots . | . . Overflow Damage . | . . Projectiles . | . . Explosions . | . . Melee . | . . Knockbacks . | . . Impact . | . . Kinetic . | . . Secondary . | . . Self-Inflicted Damage . | . . Shots . | . . Rammed . | . . Targets Rammed . | . . Kicked . | . . Crushed . | . . Highest Temperature 25 | . 25 Average Temperature 7 | . 7 Received Heat Transfer 252 | 18 234 Siege Activations . | . . Robots Corrupted . | . . Combat Hostiles . | . . Parts Fried . | . . Impact Corruptions . | . . Robots Melted . | . . Combat Hostiles . | . . Parts Melted . | . . Heat Transferred . | . . Parts Sabotaged . | . . Parts Stolen . | . . Parts Stripped . | . . Power Chain Reactions . | . . Alert | -11 -10 ------- Run | Yrd Mat Peak Influence 138 | 30 138 Initial 19 | . 19 Average 50 | 17 57 Maximum Alert Level . | . . Low Security (%) 100 | 100 100 Level 1 . | . . Level 2 . | . . Level 3 . | . . Level 4 . | . . Level 5 . | . . High Security . | . . Max Security . | . . Squads Dispatched 1 | . 1 Investigation 1 | . 1 Extermination . | . . Reinforcement . | . . Assault . | . . Garrison . | . . Intercept . | . . Searches Triggered . | . . Construction Impeded . | . . Haulers Reinforced . | . . Active Scanning Responses . | . . Cargo Convoy Interrupts . | . . Stealth | -11 -10 --------- Run | Yrd Mat Distress Signals 1 | . 1 Communications Jammed . | . . Distress Signals . | . . Times Spotted 20 | 1 19 Peak Tracking Total 4 | 1 4 Tactical Retreats . | . . Traps | -11 -10 ------- Run | Yrd Mat Traps Triggered . | . . Indirectly . | . . Trap Hack Attempts . | . . Triggered . | . . Disarmed . | . . Reprogrammed . | . . Reused . | . . Traps Extracted . | . . Installed . | . . Triggered . | . . Machines | -11 -10 ---------- Run | Yrd Mat Machines Disabled . | . . Max in Single Turn . | . . Machines Repaired . | . . Machines Dismantled . | . . Machines Sabotaged . | . . Overloaded Fab Kills . | . . Hacking | -11 -10 --------- Run | Yrd Mat Machines Accessed 5 | . 5 Terminals 3 | . 3 Fabricators . | . . Repair Stations 1 | . 1 Recycling Units 1 | . 1 Scanalyzers . | . . Garrison Access . | . . Total Hacks 14 | . 14 Successful 12 | . 12 Failed 2 | . 2 Catastrophic . | . . Database Lockouts . | . . Manual . | . . Terminals 10 | . 10 Fabricators . | . . Repair Stations 1 | . 1 Recycling Units 3 | . 3 Scanalyzers . | . . Garrison Access . | . . Terminal Hacks 8 | . 8 Record 6 | . 6 Alert Level 1 | . 1 Locate Traps 1 | . 1 Fabricator Hacks . | . . Repair Station Hacks 1 | . 1 Scan Component 1 | . 1 Recycling Unit Hacks 3 | . 3 Recycle Component 3 | . 3 Scanalyzer . | . . Garrison Access Hacks . | . . Unauthorized Hacks . | . . Terminals . | . . Fabricators . | . . Repair Stations . | . . Recycling Units . | . . Scanalyzers . | . . Garrison Access . | . . Data Cores Recovered 1 | . 1 Used . | . . Hacking Detections 3 | . 3 Full Trace Events 1 | . 1 Feedback Events . | . . Feedback Blocked . | . . Robot Schematics Acquired . | . . Robots Built . | . . Authchips . | . . Time . | . . Total Robot Build Rating . | . . Part Schematics Acquired . | . . Parts Built . | . . Authchips . | . . Time . | . . Total Part Build Rating . | . . Parts Repaired . | . . Time . | . . Parts Recycled 3 | . 3 Recycled Matter . | . . Retrieved Matter . | . . Retrieved Components . | . . Parts Scanalyzed . | . . Part Schematics Acquired . | . . Parts Damaged . | . . Bothacking | -11 -10 ------------ Run | Yrd Mat Used RIF Installer . | . . Robots Hacked . | . . Non-combat . | . . Combat . | . . Robot Hacks Applied . | . . Relay Couplers Released . | . . Fabnet Peak Effective % . | . . Robots Rewired . | . . Allies Hacked . | . . Hacks Repelled . | . . Allies | -11 -10 -------- Run | Yrd Mat Total Allies . | . . Largest Group . | . . Highest-Rated Group . | . . Highest-Rated Ally . | . . Total Orders . | . . Ally Attacks . | . . Total Damage . | . . Kills . | . . Allies Corrupted . | . . Allies Melted . | . . Intel | -11 -10 ------- Run | Yrd Mat Robot Analysis Total . | . . Derelict Logs Recovered . | . . Drone Launches . | . . Drone Recoveries . | . . Exploration | -11 -10 ------------- Run | Yrd Mat Turns Passed 1369 | 228 1141 Spaces Moved 655 | 213 442 Core 25 | 24 1 Treads . | . . Legs 91 | . 91 Wheels 479 | 189 290 Hover . | . . Flight 60 | . 60 Fastest Speed 50 | 50 80 Average Speed 162 | 76 203 Slowest Speed 920 | 80 920 Overloaded Moves . | . . Propulsion Burnouts . | . . Robots Hopped . | . . Cave-ins Triggered . | . . Exploration Rate (%) 30 | 9 52 Regions Visited 1 Branch Regions . Pre-discovered Areas . | . . Known Exits Taken . | . . Unknown Exits Taken 1 | 1 . Scrap Searched . | . . Spaces Dug . | . . Terrain Destroyed . | . . Melee . | . . Projectile . | . . AOE . | . . Terrain Rammed . | . . Walls Destroyed . | . . Machines Disabled . | . . Actions | -11 -10 --------- Run | Yrd Mat Total 854 | 248 606 Wait 50 | . 50 Move 654 | 212 442 Hop . | . . Pick Up 34 | 10 24 Fast Attach . | . . Attach 24 | 6 18 Detach 15 | 1 14 Swap 1 | 1 . Drop 6 | . 6 Fire 70 | 18 52 Melee . | . . Ram . | . . Kick . | . . Crush . | . . Escape Stasis . | . . Rewire . | . . Trap . | . . Miscellaneous . | . . Route ------- -11/Scrapyard -10/Materials (discovered 2 exits: [*Mat] / [*Min]) History --------- Turn | Location | Event 2 | -11/Scrapyard | Met Revision 17 78 | -11/Scrapyard | Discovered new exit (range 8) 229 | -11/Scrapyard | Entered Materials 329 | -10/Materials | Build established: Mutant 502 | -10/Materials | Discovered new exit (range 13) 992 | -10/Materials | Core integrity fell below 50% 1126 | -10/Materials | Discovered new exit (range 10) 1152 | -10/Materials | Core integrity fell below 20% 1370 | -10/Materials | Destroyed by G-34 Mercenary with Small Laser Last Messages --------------- until it reaches a certain quota, at which point it is transferred to the nearest [DSF]. >>Query(Terminal) Interactive station connected to the central network via reliable hard line. Relevant information is monitored and relayed by the terminal's Operator. Types of information accessible directly from each terminal are limited in order to mitigate the negative impacts of unauthorized access. Access is restricted by shielding the system behind multi-layered security, the first layer of which requires a dynamic key to clear without triggering defense mechanisms. ALERT: Suspicious activity at Terminal M008. Dispatching Investigation squad. [Achievement: One Hack Too Far] Flight Unit destroyed. Lgt. Assault Rifle destroyed. [Achievement: First Step to Greatness] Map ----- +----------------------------------------------------+ | | | | | | | | | | | | | | | | | | | | | | | | | | | | | | | | | | | | | ??????????????????????????#########?????????????? | | ??????????????????????????# * #?????????????? | | ??????????????????????????# * #?????????????? | | ??????????????????????????# #?????????????? | | ??????????????????????????#! #?????????????? | | ??????????????????????##??# #?????????????? | | ???????????????????####T######+###############??? | | ???????????????????# @ ?? | | ???????????????????# gg ?? | | ???????????????????# w u k ?? | | ???????????????????###########+#############????? | | ???????????????????????????# % #?????????????? | | ???????????????????????????# """ #?????????????? | | ???????????????????????????# """ #?????????????? | | ???????????????????????????# """ #?????????????? | | ???????????????????????????# #?????????????? | | ???????????????????????????# #?????????????? | | ???????????????????????????######+#?????????????? | | ????????????????????#####?????### ###???????????? | | ????????????????????# ##### #???????????? | | ????????????????????# #???????????? | | ????????????????????# T #???????????? | | ????????????????????# #???????????? | | ??????????????? ##### #???????????? | | ????????????????### #####?????## ##???????????? | | ???????????????????????????????# #????????????? | | ?????????????????????########### #????????????? | | ?????????????????????# # #????????????? | | ?????????????????????#"" """ # ######???????? | | ?????????????????????#"Y """ # #???????? | | ?????????????????????#"" """ + ^^#???????? | | ?????????????????????# # ^^+???????? | +----------------------------------------------------+ Best States ------------- Heat Dissipation 25 Energy Generation 10 Energy Capacity 250 Matter Stores 300 Matter Capacity 300 Sight Range 16 Terrain Scan Density 10 Propulsion Shielding 33 Evasion (%) 50 Offensive Hacking 10 Item Schematics ----------------- None Robot Schematics ------------------ None Fabricated ------------ Nothing Alien Tech Used ----------------- None Achievements -------------- Crack Shot First Step to Greatness One Hack Too Far Challenges ------------ None Game ------ Seed SuperchargedWarlordMantle Manual? 0 Play Time 00:19:35 Cumulative 0.2 hours Start 2024.12.24 @ 11:26:33 End 2024.12.24 @ 11:45:14 Sessions 2 Manual Loads 0 Difficulty Rogue Special Mode None Game No. 1 Rogue 1 Adventurer 0 Explorer 0 Win Type - Total 0 Types 0/0/0/0/0/0/0/0/0 Lore% 0 Gallery% 1 Achievement% 1 Wizard Run 0 Options --------- Layout 1 ASCII 0 Keyboard 0 Movement Mouse Keybinds 0 Fullscreen 2 Font 24/X11 Map View 50x35 Zoom Use 20% Tactical HUD 0 Map Filters NONE Filters NONE Steam 1 RUN: 4bd59ae5-6cd9-47c4-b30b-682ee6d50acb